bitfinex/quotes_ETHUSD_20220213
["timestamp","ask_amount","ask_price","bid_price","bid_amount"]
[1644767368930,1.3045755,2931.9,2931.8,21.36000015]
[1644767372984,1.30328506,2931.9,2931.8,21.36000015]
[1644767375585,1.30235101,2931.9,2931.8,21.35199205]
[1644767377837,0.30435101,2931.9,2931.8,20.65399205]
[1644767378436,0.03160809,2931.9,2931.8,20.65399205]
[1644767380681,0.03160809,2931.9,2931.8,20.67382953]
[1644767385736,0.03160809,2931.9,2931.8,20.65399205]
[1644767388183,0.03160809,2931.9,2931.8,20.08209129]
[1644767388383,0.03160809,2931.9,2931.7,0.01068323]
[1644767389388,0.03160809,2931.9,2931.5,19.91311016]
[1644767389590,0.03160809,2931.9,2931.7,0.0106833]
[1644767390590,0.03160809,2931.9,2931.6,2.47862961]
[1644767390792,0.03160809,2931.9,2931.7,0.0106833]
[1644767391438,0.03160809,2931.9,2931.7,0.18277459]
[1644767391837,0.03160809,2931.9,2931.7,1.17209129]
[1644767392037,0.03160809,2931.9,2931.7,1.18277459]
[1644767392246,0.03160809,2931.9,2931.7,0.48277459]
[1644767392638,0.03160809,2931.9,2931.7,1.78277459]
[1644767393042,0.03160809,2931.9,2931.7,1.77209129]
[1644767393043,1.45120406,2931.8,2931.7,1.77209129]
[1644767393240,1.45120406,2931.8,2931.7,0.78277459]
[1644767393440,1.45120406,2931.8,2931.7,1.78277459]
[1644767393640,1.45120406,2931.8,2931.7,0.78277459]
[1644767393841,1.45120406,2931.8,2931.7,1.78277459]
[1644767394041,1.45120406,2931.8,2931.7,0.78277459]
[1644767394245,1.45120406,2931.8,2931.7,1.77209129]
[1644767395794,1.45120406,2931.8,2931.7,0.77209129]
[1644767396493,1.45549697,2931.8,2931.7,0.77209129]
[1644767397595,1.47553019,2931.8,2931.7,3.91036699]
[1644767397795,1.47553019,2931.8,2931.7,4.91036699]
[1644767398396,1.47441959,2931.8,2931.7,4.91036699]
[1644767398834,1.47441959,2931.8,2931.7,1.77209129]
[1644767399034,1.47441959,2931.8,2931.7,4.91211274]
[1644767399838,1.47441959,2931.8,2931.7,1.77209129]
[1644767400040,1.47441959,2931.8,2931.7,0.77209129]
[1644767400240,1.47441959,2931.8,2931.7,1.17209129]
[1644767400439,1.47441959,2931.8,2931.7,0.17209129]
[1644767406332,0.02432613,2931.8,2931.7,0.17209129]
[1644767407140,0.02432613,2931.8,2931.7,3.3110621]
[1644767407340,0.02432613,2931.8,2931.7,4.3110621]
[1644767408538,0.02432613,2931.8,2931.7,4.34484236]
[1644767410380,0.03998698,2931.9,2931.8,4.95]
[1644767410583,0.03998698,2931.9,2931.8,28.3812684]
[1644767410783,0.03998698,2931.9,2931.8,29.55335969]
[1644767410981,0.03998698,2931.9,2931.8,9.64335969]
[1644767411386,0.03998698,2931.9,2931.8,9.81385969]
[1644767411583,0.03998698,2931.9,2931.8,29.72385969]
[1644767411584,0.06241126,2931.9,2931.8,29.72385969]
[1644767411784,0.06658455,2931.9,2931.8,29.72385969]
[1644767413287,0.06658455,2931.9,2931.8,1.34259129]
[1644767413487,0.06658455,2931.9,2931.8,1.17209129]
[1644767413687,0.06658455,2931.9,2931.8,0.17209129]
[1644767415840,0.11204074,2931.9,2931.8,0.17209129]
[1644767416539,0.11578924,2931.9,2931.8,0.17209129]
[1644767418383,1.5669194,2931.9,2931.8,0.17209129]
[1644767419188,0.65735275,2932.5,2931.9,4.95]
[1644767419387,1.45104715,2932.4,2932.0,4.25348636]
[1644767419586,1.45104715,2932.3,2932.0,4.72557765]
[1644767419787,1.45104715,2932.2,2932.0,5.02557765]
[1644767419986,0.0056484,2932.5,2932.1,3.32171425]
[1644767420187,1.45090176,2932.4,2932.2,0.92732491]
[1644767420390,1.45090176,2932.4,2932.3,23.02792869]
[1644767420587,0.0038845,2932.8,2932.4,24.86]
[1644767420787,0.0038845,2932.8,2932.3,0.17209129]
[1644767420988,0.0038845,2932.8,2931.9,1.0]
[1644767420989,0.0038845,2932.8,2931.9,0.17209129]
[1644767420990,0.51627387,2932.0,2931.9,0.17209129]
[1644767421187,0.51627387,2932.0,2931.4,0.00311016]
[1644767421436,0.14842383,2931.9,2931.4,0.00311016]
[1644767421837,0.14842383,2931.9,2931.7,1.16161858]
[1644767423040,0.14842383,2931.9,2931.4,0.00311016]
[1644767423239,0.14842383,2931.9,2931.7,0.01089415]
[1644767423738,0.79509645,2931.9,2931.7,0.01089415]
[1644767423937,4.34052741,2931.8,2931.7,0.01089415]
[1644767424137,4.34052741,2931.8,2930.8,0.68478076]
[1644767424337,4.34052741,2931.8,2931.2,0.86172183]
[1644767424537,4.34052741,2931.8,2931.7,0.01089415]
[1644767424941,3.69385479,2931.8,2931.7,0.01089415]
[1644767425382,3.69385479,2931.8,2931.3,0.00311016]
[1644767425592,3.69385479,2931.8,2931.6,0.01064257]
[1644767426188,0.04823435,2931.8,2931.7,7.204e-05]
[1644767426588,0.0524856,2931.8,2931.7,7.204e-05]
[1644767427789,0.0524856,2931.8,2931.7,1.021809]
[1644767429133,0.0524856,2931.8,2931.7,7.204e-05]
[1644767430432,0.00425125,2931.8,2931.6,0.01376958]
[1644767431234,0.12425125,2931.8,2931.6,0.01376958]
[1644767431437,0.12069609,2931.8,2931.6,0.04523091]
[1644767431640,0.12069609,2931.8,2931.6,0.05589042]
[1644767432690,0.12069609,2931.8,2931.6,0.04523091]
[1644767432890,0.12069609,2931.8,2931.6,0.05588929]
[1644767433695,0.12069609,2931.8,2931.6,0.04523091]
[1644767434096,0.12069609,2931.8,2931.6,0.05588929]
[1644767434998,0.12069609,2931.8,2931.6,0.04523091]
[1644767435199,0.12069609,2931.8,2931.6,0.05588929]
[1644767436199,0.12069609,2931.8,2931.6,0.04523091]
[1644767436436,0.12069609,2931.8,2931.6,0.05588937]
[1644767437337,0.12069609,2931.8,2931.6,0.04523091]
[1644767437536,0.12069609,2931.8,2931.6,0.05588937]
[1644767438640,0.12069609,2931.8,2931.6,0.04523091]
[1644767438836,0.12069609,2931.8,2931.6,0.05588937]
[1644767439739,0.12069609,2931.8,2931.6,0.04523091]
[1644767439939,0.12069609,2931.8,2931.6,0.05588936]
[1644767440590,1.45139881,2931.7,2931.6,0.05588936]
[1644767440787,1.45139881,2931.7,2931.6,0.0527792]
[1644767440988,1.45139881,2931.7,2931.6,0.04212075]
[1644767441191,0.32224167,2931.4,2931.1,0.04575069]
[1644767441394,0.32224167,2931.4,2931.2,1.18547552]
[1644767442497,0.32224167,2931.4,2931.2,1.19613465]
[1644767442898,0.63627387,2932.0,2931.2,1.19613465]
[1644767442899,0.64655997,2932.4,2931.5,4.95]
[1644767443096,0.64655997,2932.4,2931.7,4.95]
[1644767443097,1.45126638,2932.4,2931.7,4.95]
[1644767443300,1.45110937,2932.3,2932.1,5.0]
[1644767443496,1.45110937,2932.3,2932.0,0.01227278]
[1644767443497,1.5088004,2933.1,2932.3,4.9]
[1644767443699,9.99149802,2933.3,2932.7,4.4]
[1644767443700,1.45096337,2933.0,2932.7,4.4]
[1644767443940,1.15996337,2932.9,2932.7,4.4]
[1644767444141,10.37318888,2933.3,2932.8,0.1703]
[1644767444342,10.37318888,2933.3,2932.8,1.34239129]
[1644767444343,9.99149802,2933.3,2932.8,1.34239129]
[1644767444542,9.99149802,2933.3,2932.9,0.53493468]
[1644767444744,9.99149802,2933.5,2933.0,0.1703]
[1644767444947,9.99149802,2933.3,2933.0,0.1703]
[1644767445142,9.99149802,2933.3,2932.9,0.83493468]
[1644767445344,10.85364531,2933.8,2932.9,0.83493468]
[1644767445544,9.99149802,2933.3,2933.0,0.1703]
[1644767445744,9.99149802,2933.3,2933.0,3.44856086]
[1644767445945,9.99149802,2933.8,2933.1,1.0]
[1644767446146,9.99149802,2933.3,2933.2,3.09228833]
[1644767446449,10.85364531,2933.8,2933.2,1.0]
[1644767446846,10.85364531,2933.8,2933.1,1.0]
[1644767447046,9.99149802,2933.8,2933.1,1.0]
[1644767447346,0.01098484,2933.6,2933.1,1.0]
[1644767447988,9.99149802,2933.5,2933.1,1.0]
[1644767448188,9.99149802,2933.5,2933.2,0.1703]
[1644767448387,10.85364531,2933.9,2933.1,1.0]
[1644767448588,0.01090773,2933.5,2933.1,1.0]
[1644767448789,9.99149802,2933.4,2933.2,0.3]
[1644767449090,9.94149802,2933.4,2933.2,0.6]
[1644767449488,0.86214729,2933.9,2933.2,0.6]
[1644767449787,0.86214729,2933.9,2933.2,4.52726407]
[1644767449788,10.0,2933.3,2933.2,4.52726407]
[1644767449989,1.29334524,2934.2,2933.4,0.85215]
[1644767449990,10.0,2933.8,2933.4,0.85215]
[1644767450189,9.14785,2933.3,2933.2,6.37936407]
[1644767450589,1.92172116,2934.1,2933.2,6.37936407]
[1644767450791,0.86214729,2934.0,2933.3,1.0]
[1644767450990,0.01027345,2933.4,2933.3,1.3]
[1644767451191,10.01027345,2933.4,2933.3,2.15216]
[1644767451641,10.01027345,2933.4,2933.3,2.15213]
[1644767451839,10.0,2933.4,2933.3,5.56809009]
[1644767452041,10.0,2933.4,2933.3,2.45213]
[1644767452339,0.03407057,2933.5,2933.3,5.94886973]
[1644767452541,0.86214729,2934.5,2933.4,3.64822738]
[1644767452740,1.195,2934.7,2933.6,1.70385]
[1644767452741,0.86214729,2934.6,2933.6,1.70385]
[1644767452940,0.86214729,2934.6,2933.7,3.36658415]
[1644767452941,10.0,2934.4,2933.7,3.36658415]
[1644767453240,0.86214729,2934.6,2933.7,3.66658415]
[1644767453440,3.77059492,2934.3,2933.9,0.45347494]
[1644767453640,1.9189151,2935.0,2933.9,0.75347494]
[1644767453840,1.05676781,2935.0,2933.9,0.75347494]
[1644767454040,0.64490841,2934.9,2933.9,1.05347494]
[1644767454640,0.00567052,2934.6,2933.9,1.05347494]
[1644767454940,0.00567052,2934.6,2933.9,4.19965874]
[1644767455189,0.00567052,2934.6,2933.9,3.7461838]
[1644767455392,0.81520841,2935.1,2934.5,0.3]
[1644767455692,0.01070846,2934.4,2934.1,3.30137695]
[1644767455890,0.65561687,2934.4,2934.2,1.0]
[1644767456091,10.0,2934.3,2934.2,1.3]
[1644767456290,10.0,2934.3,2934.2,0.3]
[1644767456695,0.04917475,2934.4,2934.0,0.3]
[1644767456899,0.06625839,2934.4,2934.0,0.3]
[1644767457097,0.06625839,2934.4,2933.7,1.7703]
[1644767457294,0.06625839,2934.4,2933.8,0.90756354]
[1644767457494,0.06625839,2934.4,2933.8,4.04436611]
[1644767457695,0.06625839,2934.4,2933.8,5.04436611]
[1644767457895,0.05554993,2934.4,2933.8,5.04436611]
[1644767458097,0.01068745,2934.2,2933.8,5.04436611]
[1644767458298,0.01068745,2934.2,2933.8,1.90756354]
[1644767459036,0.05554993,2934.4,2933.8,5.04207102]
[1644767459236,0.05554993,2934.4,2933.8,1.90756354]
[1644767459439,0.01068762,2934.1,2933.8,4.04678673]
[1644767459635,0.01068762,2934.1,2933.8,2.07786354]
[1644767460036,0.01068762,2934.1,2933.8,1.1703]
[1644767460236,0.01068762,2934.1,2933.8,0.1703]
[1644767460437,0.05554993,2934.4,2933.8,0.1703]
[1644767460636,0.05554993,2934.4,2933.7,1.6]
[1644767460637,0.0103685,2934.1,2933.7,1.6]
[1644767461339,0.0103685,2934.1,2933.9,0.07678368]
[1644767461541,0.85212,2934.1,2933.9,0.07678368]
[1644767461741,0.01036858,2934.0,2933.9,0.07678368]
[1644767461946,0.01426033,2934.0,2933.9,0.07678368]
[1644767462599,0.01426033,2934.0,2933.8,0.02257354]
[1644767462600,0.01426033,2934.0,2933.8,5.722e-05]
[1644767462891,0.17419175,2934.0,2933.8,5.722e-05]
[1644767464092,1.45062584,2933.9,2933.8,5.722e-05]
[1644767466095,1.48319579,2933.9,2933.2,1.70461]
[1644767466341,0.00389219,2933.8,2933.2,1.70461]
[1644767466740,1.45063015,2933.7,2933.3,1.70459]
[1644767466940,0.00389219,2933.6,2933.1,0.02260876]
[1644767467338,0.03943969,2933.9,2933.1,0.02260876]
[1644767467542,1.4506333,2933.8,2933.1,0.02260876]
[1644767467741,0.01070515,2933.6,2933.2,0.85231]
[1644767468041,0.01070515,2933.6,2933.1,0.87489876]
[1644767468240,0.01070515,2933.6,2933.2,0.85233]
[1644767468841,0.03943969,2933.9,2933.2,0.85233]
[1644767469043,0.01086284,2933.6,2933.1,1.72718876]
[1644767469441,0.01086284,2933.6,2933.1,0.87489876]
[1644767470093,0.03943969,2933.9,2933.1,0.02260876]
[1644767470286,0.01086274,2933.6,2933.1,0.02260876]
[1644767471086,0.00389219,2933.7,2933.1,0.02260876]
[1644767471285,0.89184969,2933.9,2933.1,0.02260876]
[1644767471286,1.45071698,2933.6,2933.1,0.02260876]
[1644767471495,1.45460917,2933.5,2933.2,0.00507533]
[1644767471690,0.00389219,2933.5,2933.2,0.00507533]
[1644767471889,0.92215107,2933.5,2933.2,0.00507533]
[1644767472293,0.00389219,2933.4,2933.2,0.00507533]
[1644767472689,1.45081486,2933.3,2933.2,0.00507533]
[1644767472890,0.00389219,2933.4,2933.2,0.00507533]
[1644767476137,1.45076836,2933.3,2933.2,0.00507533]
[1644767476338,0.02632632,2933.3,2933.2,0.00507533]
[1644767476759,1.47705239,2933.3,2933.2,0.00507533]
[1644767476939,1.47705239,2933.3,2932.8,0.0106982]
[1644767476940,1.48167098,2933.3,2932.8,0.0106982]
[1644767477140,0.85642219,2933.2,2932.4,3.81159997]
[1644767477344,0.85642219,2933.2,2932.5,1.1703]
[1644767477593,0.85642219,2933.2,2932.8,0.0106981]
[1644767477786,6.40089647,2933.1,2932.1,0.25]
[1644767477987,6.40089647,2933.1,2931.6,1.228]
[1644767477988,7.47392647,2933.0,2931.6,1.228]
[1644767478186,1.70557,2932.7,2931.6,1.75069548]
[1644767478385,1.17579182,2932.4,2931.6,0.52269548]
[1644767478585,1.17579182,2932.4,2931.5,4.87691016]
[1644767479186,2.02855182,2932.4,2931.6,3.5]
[1644767479586,1.17579182,2932.4,2931.6,3.5]
[1644767479787,1.17579182,2932.4,2931.9,0.01038239]
[1644767480789,1.45115826,2932.3,2931.5,5.33318016]
[1644767480987,1.45115826,2932.3,2932.0,0.01038215]
[1644767481438,1.45115826,2932.3,2931.6,0.04153481]
[1644767481439,0.02076429,2931.7,2931.6,0.04153481]
[1644767482040,0.02076429,2931.7,2931.5,3.62771016]
[1644767483438,0.02076429,2931.7,2931.5,3.63800775]
[1644767484438,0.02076429,2931.7,2931.5,3.62771016]
[1644767484738,0.02076429,2931.7,2931.5,3.63223945]
[1644767484939,0.87372429,2931.7,2931.5,0.00763945]
[1644767485190,0.87372429,2931.7,2931.5,0.00452929]
[1644767485388,1.45156455,2931.6,2931.5,0.00452929]
[1644767485586,1.45156455,2931.6,2931.1,0.00311016]
[1644767485786,0.85307,2931.5,2931.1,0.00311016]
[1644767485985,0.85307,2931.5,2931.0,0.01811986]
[1644767485986,1.70613,2931.5,2931.0,0.01811986]
[1644767486391,0.85306,2931.5,2931.0,0.01811986]
[1644767486790,0.85306,2931.5,2930.8,0.00311016]
[1644767486991,0.85307,2931.4,2930.8,0.00311016]
[1644767487193,0.88146227,2931.6,2930.8,0.00311016]
[1644767487392,0.88146227,2931.6,2930.6,0.00311016]
[1644767487393,1.45162098,2931.5,2930.6,0.00311016]
[1644767487592,1.04801299,2931.2,2930.6,0.00311016]
[1644767487993,0.19893227,2931.6,2930.6,0.00311016]
[1644767488193,1.45162744,2931.5,2930.6,0.00311016]
[1644767488838,0.85306,2931.4,2930.6,0.00311016]
[1644767490635,1.70617,2931.4,2930.9,0.01132108]
[1644767490837,0.85316,2931.3,2930.9,0.01132108]
[1644767491035,0.04487705,2931.1,2930.9,0.01132108]
[1644767491640,0.89807705,2931.1,2930.6,0.00311016]
[1644767491838,0.89807705,2931.1,2930.9,0.01132108]
[1644767492686,0.04487705,2931.1,2930.9,0.01132108]
[1644767492886,0.04487705,2931.1,2930.6,0.00311016]
[1644767493091,0.04487705,2931.1,2930.9,0.01132108]
[1644767493986,0.04487705,2931.1,2930.6,0.00311016]
[1644767494186,0.04487705,2931.1,2930.9,0.01132108]
[1644767495193,0.04487705,2931.1,2930.6,0.00311016]
[1644767495393,0.04487705,2931.1,2930.9,0.01132108]
[1644767496337,0.03392595,2931.0,2930.6,0.00311016]
[1644767496541,0.03392595,2931.0,2930.6,0.37140339]
[1644767496741,0.03392595,2931.0,2930.9,0.01132108]
[1644767497645,0.03392595,2931.0,2930.7,0.00311016]
[1644767497847,0.03392595,2931.0,2930.8,0.01132116]
[1644767498246,0.03392595,2931.0,2930.8,0.01443132]
[1644767498847,0.03392595,2931.0,2930.8,0.85608016]
[1644767499049,0.03392595,2931.0,2930.8,0.86740141]
[1644767500096,0.03392595,2931.0,2930.8,0.85608016]
[1644767500285,0.03392595,2931.0,2930.8,0.86740141]
[1644767501291,0.0773394,2931.0,2930.8,0.85608016]
[1644767501491,0.0773394,2931.0,2930.8,0.86740141]
[1644767502390,0.0773394,2931.0,2930.8,0.85608016]
[1644767502793,0.0773394,2931.0,2930.8,0.86740141]
[1644767503691,0.07650992,2931.0,2930.8,0.85608016]
[1644767503939,0.07650992,2931.0,2930.8,0.86740141]
[1644767504943,0.07650992,2931.0,2930.8,0.85608016]
[1644767505139,0.07650992,2931.0,2930.8,0.86740141]
[1644767506140,0.07650992,2931.0,2930.8,1.70904016]
[1644767506443,0.02279833,2930.9,2930.8,0.86739141]
[1644767507244,0.02279833,2930.9,2930.8,0.85607016]
[1644767507603,0.02279833,2930.9,2930.4,1.57954959]
[1644767507604,3.1,2930.7,2929.9,2.98039027]
[1644767507806,8.45,2930.6,2929.8,0.25]
[1644767508006,5.0,2930.1,2928.9,5.2637]
[1644767508194,0.01232697,2930.4,2928.6,3.9417]
[1644767508195,0.01231972,2929.7,2928.6,3.9417]
[1644767508603,0.85381,2929.1,2928.3,0.25]
[1644767508796,2.56147,2929.0,2927.8,10.2241]
[1644767509002,2.46147,2929.0,2927.8,3.9417]
[1644767509395,1.60764,2929.0,2927.8,3.9417]
[1644767509598,0.8538,2928.9,2927.8,3.9417]
[1644767509994,0.8538,2928.9,2928.5,0.01078174]
[1644767510195,1.70771,2928.9,2928.5,0.01078174]
[1644767510795,3.58434104,2928.8,2927.8,4.79542]
[1644767510999,3.58434104,2928.8,2927.8,3.9417]
[1644767511000,4.43813104,2928.8,2927.8,3.9417]
[1644767511446,1.7076,2928.7,2927.8,3.9417]
[1644767511644,4.00611753,2928.6,2927.8,3.9417]
[1644767512044,4.16048,2928.8,2927.8,3.9417]
[1644767512245,3.5,2928.7,2927.8,3.9417]
[1644767512445,3.5,2928.7,2927.5,0.25]
[1644767512446,5.0,2928.3,2927.5,0.25]
[1644767512648,8.5,2928.3,2927.5,0.25]
[1644767512845,8.5,2928.3,2928.2,6.4e-06]
[1644767513045,8.5,2928.3,2928.2,0.0132128]
[1644767513046,10.1,2928.3,2928.2,0.0132128]
[1644767513244,10.1,2928.3,2927.2,0.25]
[1644767513245,10.05,2928.3,2927.2,0.25]
[1644767513445,10.05,2928.3,2926.9,0.0171647]
[1644767513446,5.0,2927.8,2926.9,0.0171647]
[1644767513646,1.87968,2927.7,2926.9,0.0171647]
[1644767513849,1.02526,2927.7,2926.9,0.0171647]
[1644767514545,1.70857,2927.5,2926.9,0.0171647]
[1644767514745,1.02526,2927.7,2927.2,0.01129613]
[1644767514945,0.85446,2927.7,2927.2,0.01129613]
[1644767515603,0.85446,2927.7,2926.9,0.0171647]
[1644767515801,1.70869,2927.7,2926.9,0.0171647]
[1644767516101,1.70869,2927.7,2927.3,0.01129588]
[1644767516303,0.85446,2927.7,2926.9,0.02365086]
[1644767516706,3.92599962,2927.6,2926.9,0.02365086]
[1644767516907,3.92599962,2927.6,2926.6,0.00871328]
[1644767516908,1.02507,2927.5,2926.6,0.00871328]
[1644767517107,3.66560822,2927.4,2926.6,0.00871328]
[1644767517307,3.66560822,2927.4,2926.2,1.09110497]
[1644767517507,3.83640822,2927.4,2926.2,1.09110497]
[1644767517706,3.83640822,2927.4,2926.0,7.48]
[1644767517907,3.66560822,2927.4,2926.0,7.48]
[1644767518107,0.1708,2927.5,2926.0,7.43]
[1644767518307,0.01129425,2927.1,2926.6,0.01129622]
[1644767519343,0.85434,2927.1,2925.7,4.1166]
[1644767519543,0.85434,2927.1,2926.7,0.01129597]
[1644767519544,0.86563458,2927.1,2926.7,0.01129597]
[1644767520344,4.39782122,2927.1,2926.7,0.01129597]
[1644767520543,4.39782122,2927.1,2925.8,1.03154593]
[1644767520544,2.56314,2927.1,2925.8,1.03154593]
[1644767520744,0.01129469,2927.1,2926.0,0.04519485]
[1644767520945,0.01129469,2927.1,2926.3,0.87688138]
[1644767521343,0.01129469,2927.1,2926.3,1.17688138]
[1644767521548,0.01129469,2927.1,2926.3,1.47688138]
[1644767521750,0.03046613,2927.3,2926.3,1.47688138]
[1644767521948,0.01129517,2927.1,2926.6,0.01129714]
[1644767522793,0.03046613,2927.3,2926.4,0.85718072]
[1644767523191,0.03046613,2927.3,2926.7,0.01129689]
[1644767523192,0.01129549,2927.1,2926.7,0.01129689]
[1644767523994,0.01129549,2927.1,2926.4,0.00305072]
[1644767523995,0.03046613,2927.3,2926.4,0.00305072]
[1644767524397,0.0112956,2927.1,2926.8,0.0112968]
[1644767525194,0.03046613,2927.3,2926.4,0.00305072]
[1644767525398,0.20126613,2927.3,2926.4,0.00305072]
[1644767525596,0.01129559,2927.1,2926.8,0.01129691]
[1644767526196,0.00683312,2927.0,2926.8,0.01129691]
[1644767526449,0.03040283,2927.0,2926.4,0.00305072]
[1644767526647,0.03040283,2927.0,2926.8,0.01129691]
[1644767527750,0.03040283,2927.0,2926.4,0.00305072]
[1644767527948,0.03040283,2927.0,2926.8,0.0112968]
[1644767528848,0.03040283,2927.0,2926.4,0.00305072]
[1644767529350,0.03040283,2927.0,2926.8,0.0112968]
[1644767530190,0.03040283,2927.0,2926.4,0.00305072]
[1644767530391,0.03040283,2927.0,2926.8,0.0112968]
[1644767531199,0.03040283,2927.0,2926.4,0.00305072]
[1644767531599,0.03040283,2927.0,2926.8,0.0112968]
[1644767532103,0.03040283,2927.0,2926.9,0.85399]
[1644767532303,2.356e-05,2927.1,2927.0,4.95]
[1644767532501,0.1708,2928.6,2926.9,0.17209129]
[1644767532705,0.1708,2928.6,2927.1,0.00305072]
[1644767532902,0.85414,2928.2,2927.1,0.00305072]
[1644767533103,0.85414,2928.2,2926.8,0.01129691]
[1644767533104,0.1706,2928.1,2926.8,0.01129691]
[1644767533303,0.1706,2928.1,2926.8,4.67460852]
[1644767533503,0.1706,2928.2,2926.8,4.67460852]
[1644767533841,0.1706,2928.2,2926.8,4.66331161]
[1644767534039,0.8542,2927.8,2926.8,4.66331161]
[1644767534240,1.70839,2927.9,2926.8,1.16331161]
[1644767534440,0.1708,2927.8,2926.8,1.16331161]
[1644767535044,0.16153772,2927.8,2926.8,4.30513403]
[1644767535247,0.16153772,2927.8,2926.8,5.15927403]
[1644767535446,0.1708,2928.0,2926.8,5.15927403]
[1644767535645,0.1706,2928.2,2926.8,5.15927403]
[1644767536152,0.1706,2928.2,2926.0,0.17209129]
[1644767536153,1.55048157,2926.5,2926.0,0.17209129]
[1644767536348,2.40507157,2926.5,2926.0,0.17209129]
[1644767536547,3.62737157,2926.5,2925.7,0.25]
[1644767536748,2.47278157,2926.5,2925.2,0.854]
[1644767536948,2.47278157,2926.5,2924.9,0.50539966]
[1644767537150,2.47278157,2926.5,2925.4,0.86520074]
[1644767537151,3.11146157,2926.5,2925.4,0.86520074]
[1644767537348,3.28226157,2926.5,2925.4,0.86520074]
[1644767537602,1.70918,2926.4,2925.6,0.00492603]
[1644767537795,0.85458,2926.4,2925.6,0.00492603]
[1644767538395,0.85458,2926.4,2924.8,1.84737997]
[1644767538396,3.4102998,2926.3,2924.8,2.37258501]
[1644767538700,3.4102998,2926.3,2925.9,0.0045931]
[1644767538902,0.85459,2926.2,2925.9,0.0045931]
[1644767539103,3.46804857,2926.1,2925.9,0.0045931]
[1644767539500,3.72038188,2926.4,2925.9,0.0045931]
[1644767539705,1.55048157,2926.5,2924.8,20.04819997]
[1644767539901,1.55048157,2926.5,2925.0,0.85453]
[1644767540102,1.55048157,2926.5,2925.0,0.6]
[1644767540301,1.55048157,2926.5,2925.3,0.85448]
[1644767540500,1.55048157,2926.5,2925.7,1.04553485]
[1644767541105,0.03745883,2926.3,2925.7,1.12173434]
[1644767541342,0.03745883,2926.3,2925.7,0.07619949]
[1644767542147,1.74666883,2926.3,2925.7,0.07619949]
[1644767542547,3.72632001,2926.2,2925.7,0.07619949]
[1644767542747,3.89712001,2926.2,2925.7,0.07619949]
[1644767542947,3.50914792,2926.2,2925.7,0.07619949]
[1644767543347,0.85465,2926.1,2925.7,0.07619949]
[1644767543551,3.6708,2926.0,2925.8,0.0112965]
[1644767543752,3.6708,2926.0,2925.8,9.65e-05]
[1644767543950,0.03745883,2926.3,2925.8,9.65e-05]
[1644767544551,1.74666883,2926.3,2925.7,0.07619949]
[1644767544753,0.20825883,2926.3,2925.7,0.07619949]
[1644767545598,0.03745883,2926.3,2925.7,0.07619949]
[1644767545796,0.03745883,2926.3,2925.8,0.85436]
[1644767546194,0.03335596,2926.1,2925.8,0.85436]
[1644767546396,0.04106563,2926.1,2925.8,0.85436]
[1644767546797,0.04106563,2926.1,2925.9,1.95517423]
[1644767547198,0.04106563,2926.1,2925.9,0.85436]
[1644767547400,0.03999524,2926.2,2926.0,4.95]
[1644767547603,1.55048157,2926.5,2926.0,4.95]
[1644767547604,1.55048157,2926.5,2926.0,24.86]
[1644767547900,1.55048157,2926.5,2926.1,2.70836]
[1644767548098,1.55048157,2926.5,2926.2,21.25380491]
[1644767548298,1.55048157,2926.5,2926.3,1.0]
[1644767548299,0.15918157,2926.5,2926.3,1.0]
[1644767548498,8.157e-05,2926.5,2926.3,1.0]
[1644767548949,8.157e-05,2926.5,2926.3,1.3]
[1644767549149,0.01129408,2926.6,2926.3,1.3]
[1644767549150,0.01129408,2926.6,2926.5,0.85402]
[1644767549350,3.6708,2927.7,2926.5,1.6]
[1644767549559,0.1708,2927.7,2926.9,1.06204169]
[1644767549751,0.1708,2928.0,2926.9,1.06204169]
[1644767549951,1.45356304,2927.9,2926.9,1.06204169]
[1644767550155,3.61790109,2927.8,2926.9,1.06204169]
[1644767550351,3.75390109,2927.8,2926.9,1.06204169]
[1644767550552,1.45358363,2927.7,2926.9,1.0606814]
[1644767550854,1.45358363,2927.7,2926.5,4.01625]
[1644767550855,0.01129302,2927.5,2926.5,0.6]
[1644767551051,0.01129302,2927.5,2926.5,0.3]
[1644767551251,0.01129302,2927.5,2926.4,1.3]
[1644767551252,1.45365644,2927.4,2926.4,1.6]
[1644767551453,1.62445644,2927.4,2926.4,1.6]
[1644767551652,0.1708,2927.4,2926.5,0.00304215]
[1644767552052,0.1304,2927.8,2926.5,0.00304215]
[1644767552053,0.01129378,2927.0,2926.5,0.00304215]
[1644767552253,0.01129378,2927.0,2926.7,19.91]
[1644767552702,0.01129378,2927.0,2926.8,20.91]
[1644767552906,10.0,2928.3,2926.8,22.06386]
[1644767553105,1.45335495,2928.2,2927.0,19.91]
[1644767553303,1.45335495,2928.2,2927.2,1.70768]
[1644767553502,1.45335495,2928.2,2927.3,0.00304215]
[1644767553702,2.09667852,2928.2,2927.3,0.00304215]
[1644767553902,1.45335495,2928.1,2927.3,0.00304215]
[1644767554102,0.64332357,2928.2,2927.4,0.96001237]
[1644767554303,2.09672233,2928.2,2927.5,0.00304215]
[1644767554503,0.01129235,2927.9,2927.5,0.00304215]
[1644767554703,1.45339876,2927.8,2927.5,0.00304215]
[1644767555103,1.45339876,2927.8,2926.9,0.00304215]
[1644767555307,1.45339876,2927.8,2927.4,20.76386]
[1644767555503,1.45339876,2927.8,2927.5,0.3]
[1644767555703,1.46469128,2927.8,2927.5,1.4706]
[1644767555903,0.01129252,2927.8,2927.5,1.4706]
[1644767556103,0.01129252,2927.8,2927.5,1.39174228]
[1644767556343,0.01129252,2927.8,2927.5,3.24563228]
[1644767556547,1.45322262,2927.7,2927.5,3.24563228]
[1644767556847,10.0,2928.3,2927.6,0.00304215]
[1644767557148,1.45324371,2928.2,2927.6,0.85378]
[1644767557347,1.45324371,2928.2,2927.6,1.32752215]
[1644767557546,1.45324371,2928.2,2927.7,1.71055215]
[1644767558347,0.1706,2928.7,2928.1,1.07683336]
[1644767558549,1.29334524,2929.3,2928.2,20.76363]
[1644767558550,1.45313887,2928.6,2928.2,20.76363]
[1644767558748,1.45313887,2928.6,2928.2,2.64962129]
[1644767558749,10.0,2928.6,2928.2,2.64962129]
[1644767558950,0.64332357,2929.2,2928.3,1.17209129]
[1644767558951,10.0,2929.1,2928.3,1.17209129]
[1644767559151,10.64332357,2929.1,2928.3,1.17209129]
[1644767559350,10.64332357,2929.1,2928.7,1.0273277]
[1644767559551,10.64332357,2929.1,2928.4,0.17209129]
[1644767559552,10.0,2929.1,2928.4,0.17209129]
[1644767559755,10.0,2929.1,2927.8,0.3]
[1644767559756,0.64332357,2928.7,2927.8,0.3]
[1644767560193,10.0,2928.6,2927.8,0.3]
[1644767560396,0.01129666,2928.4,2927.8,0.3]